Workbook

Sheet Лист2
A1: № контракта | B1: Дата подписания контракта | C1: Служба | D1: Куратор контракта | E1: дата начала работ по контракту | F1: дата окончания работ по контракту | G1: Цена контракта, тыс. руб. | H1: Рентабельность, % | I1: Ответственный филиал
L2: Порядок действий
K3: 1 | L3: Выделить столбцы A:I (целиком) и 2 раза быстро топнуть мышом на любой границе между буквами выделенных столбцов (наверху, там, где сами буквы А, В, С, …). Столбцы растянутся по ширине самой широкой ячейки в каждом столбце.
K4: 2 | L4: Встать в А8 и нажать Контрл Шифт Энд. Выделится вся таблица. Если выделится больше, то можно подкорректировать стрелками вверх и/или влево, держа при этом Шифт.
K5: 3 | L5: ПКМ - Формат ячеек - вкладка "Выравнивание" - снять галки "Переносить по словам" и "Автоподбор ширины"
G6: =SUM(G8:H316)-G236-G222-G204-G203-G184-G175-G157-G139-G121-G114-G110-G103-G99 -> 1908667.099 | K6: 4 | L6: Ширину столбцов с датами можно подправить вручную, а можно после каждого слова в шапке вместо пробела нажать Контрл Ентер (тогда слово перекинется на новую строку - я так сделал в ячейке F1) и снова нажать на черточку между буквами F и G.
A7: 6 | B7: 7 | C7: 8 | D7: 9 | E7: 10 | F7: 11 | G7: 12 | H7: 13 | I7: 14 | K7: 4а | L7: Первую строку разъединить ячейки и даблклик на черточке между 1 и 2. Строка растянется по высоте. Лишние строки убить
A8: 5/76-12 | B8: 2012-05-10 | C8: =IF(OR(D8="Черняк",D8="Панов",D8="Ганицева",D8="Гордиенко",D8="Лужников"),"ГИ","ПС") -> ПС | D8: Иванов | E8: 2012-05-10 | F8: 2012-10-30 | G8: 20546.77189 | I8: Балаганский | K8: 5 | L8: Лезем вниз и внимательно смотрим на таблицу. Ищем блоки объединенных ячеек. Первый - А99:В106. Выделяем его, снимаем объединение и жмем Контрл k (латинская к маленькая). Этим запускаем макрос, который заполнит все пустые ячейки значением, которое выше этой пустой ячейки.
A9: 2012.60285 | B9: 2012-05-11 | C9: =IF(OR(D9="Черняк",D9="Панов",D9="Ганицева",D9="Гордиенко",D9="Лужников"),"ГИ","ПС") -> ПС | D9: Иванов | G9: 781 | I9: Тулунский | K9: 6 | L9: Повторяем п.5 для всех блоков объединенных ячеек
A10: 2012.60283 | B10: 2012-06-15 | C10: ПС | D10: Иванов | G10: 1344.2 | I10: Тулунский | K10: 6а | L10: Можно захватывать и единичные заполненные ячейки. Например, вместо блока А99:В106 можно сразу выделить блок А99:F121 или блок А99:В178. Главное - смотреть, чтобы в выделение не попала простая (не объединенная) ячейка, в которой так и должно быть пусто. Если случайно попадет, то она тоже заполнится значением из ячейки выше.
A11: 2012.57518 | B11: 2012-06-13 | C11: ПС | D11: Иванов | G11: 405.1 | I11: Тулунский | K11: 7 | L11: Таким образом разъединяем все объединения. Е132 и Е135 разъединяем и копируем вручную - это не по столбцам, а по строкам, там макрос не работает
A12: 2012.52702 | B12: 2012-06-13 | C12: ПС | D12: Иванов | G12: 1941.223 | I12: Заларинский
A13: ЭА/13 | B13: 2012-06-13 | C13: ПС | D13: Иванов | G13: 4520.2651 | I13: Нижнеудинский | L13: Цвет шрифта менять не обязательно. Это я для наглядности.
A14: 27 | C14: ПС | D14: Иванов | G14: 676.007 | I14: Балаганский (Усть-Уда) | L14: Я пересохранил файл в xlsm, так меньше весит.
A15: 2012.49630 | B15: 2012-05-31 | C15: ПС | D15: Иванов | G15: 380.994 | I15: Качугский (Жигалово) | L15: Макрос у тебя уже был один, я добавил второй (который запускается по Контрл k)
A16: 2012.52359 | B16: 2012-06-05 | C16: ПС | D16: Иванов | G16: 2304.49064 | I16: Качугский (Жигалово)
C17: ПС | D17: Иванов | G17: 249.52 | I17: Зиминский | L17: Формула что должна считать?
C18: ПС | D18: Иванов | G18: 307.07 | I18: Зиминский | L18: Я так понял, что сумму цен контрактов ФИЛИАЛОВ, правильно?
A19: 2012.11719 | B19: 2012-02-29 | C19: ПС | D19: Иванов | G19: 1397.93448 | I19: Нижнеудинский | L19: Тогда
A20: 2012.39836 | B20: 2012-05-11 | C20: ПС | D20: Иванов | E20: 2012-05-11 | F20: 2012-07-25 | G20: 5067.1488 | I20: Усть-Илимский | K20: 1 | L20: не учитываются ячейки G199 и G244
C21: ПС | D21: Иванов | G21: 792.93 | I21: Заларинский | K21: 2 | L21: суммируется еще и столбец Н
A22: 2012.69489 | B22: 2012-06-29 | C22: ПС | D22: Иванов | E22: 2012-06-25 | F22: 2012-09-30 | G22: 1267.36931 | I22: Заларинский | K22: 3 | L22: почему-то G204 заполнено, а, например, G195 - нет
A23: 2012.74349 | B23: 2012-07-02 | C23: ПС | D23: Иванов | E23: 2012-07-02 | F23: 2012-07-09 | G23: 1163.02688 | H23: 0.1 | I23: Качугский | K23: 3а | L23: или заполняем все ячейки, соответствующие пункту "в т. ч. по филиалам:" и тогда вычитаем из общей суммы и эти ячейки, или не заполняем их вообще
A24: 2012.62229 | B24: 2012-06-18 | C24: ПС | D24: Иванов | E24: 2012-06-18 | F24: 2012-09-30 | G24: 560.2 | I24: Тулунский | K24: 3б | L24: Везде в столбце I после "Всего" должно быть двоеточие. Я поправил
A25: 2012.62639 | B25: 2012-06-18 | C25: ПС | D25: Иванов | E25: 2012-06-18 | F25: 2012-08-02 | G25: 576.63 | I25: Тулунский
A26: 2012.62873 | B26: 2012-06-19 | C26: ПС | D26: Иванов | F26: 2012-07-19 | G26: 474.09118 | I26: Тулунский
A27: 2012.63475 | B27: 2012-06-18 | C27: ПС | D27: Иванов | E27: 2012-06-18 | F27: 2012-08-15 | G27: 631.35 | I27: Тулунский | L27: Формулу можно написать так:
A28: 2012.63115 | B28: 2012-06-19 | C28: ПС | D28: Иванов | E28: 2012-06-19 | F28: 2012-07-19 | G28: 907.1 | I28: Тулунский | L28: =SUMPRODUCT((I8:I316<>"Всего:")*(I8:I316<>"в т. ч. по филиалам:")*G8:G316) -> 1851898.757
A29: 2012.64547 | B29: 2012-06-20 | C29: ПС | D29: Иванов | E29: 2012-06-20 | F29: 2012-09-30 | G29: 868.56578 | I29: Заларинский | L29: При этом ячейки G130, G148 и G158 нужно заполнить нормально. Я их просто стер.
A30: 2012.62003 | B30: 2012-06-15 | C30: ПС | D30: Иванов | E30: 2012-06-15 | F30: 2012-06-30 | G30: 619.8605 | I30: Тулунский
A31: 01343000009612000028 | B31: 2012-07-02 | C31: ПС | D31: Иванов | E31: 2012-07-02 | F31: 2012-09-01 | G31: 1696 | H31: 0.1 | I31: Качугский
A32: 01343000009612000031 | B32: 2012-07-02 | C32: ПС | D32: Иванов | E32: 2012-07-02 | F32: 2012-09-01 | G32: 710 | H32: 0.1 | I32: Качугский
A33: 01343000009612000035 | B33: 2012-07-02 | C33: ПС | D33: Иванов | E33: 2012-07-02 | F33: 2012-09-01 | G33: 758.587 | H33: 0.1 | I33: Качугский
A34: 01343000009612000034 | B34: 2012-07-02 | C34: ПС | D34: Иванов | E34: 2012-07-02 | F34: 2012-09-01 | G34: 780 | H34: 0.1 | I34: Качугский
A35: 01343000009612000036 | B35: 2012-07-03 | C35: ПС | D35: Иванов | E35: 2012-07-03 | F35: 2012-09-01 | G35: 793 | H35: 0.1 | I35: Качугский
C36: ПС | D36: Иванов | G36: 608.82238 | I36: Усть-Илимский
C37: ПС | D37: Иванов | G37: 318 | I37: Усть-Илимский
C38: ПС | D38: Иванов | G38: 435.38 | I38: Зиминский
A39: 2012.66906 | B39: 2012-06-26 | C39: ПС | D39: Иванов | E39: 2012-06-26 | F39: 2012-09-01 | G39: 1460.88029 | I39: Зиминский
C40: ПС | D40: Иванов | G40: 452 | H40: 0.2 | I40: Усть-Ордынский
C41: ПС | D41: Иванов | G41: 465 | H41: 0.2 | I41: Усть-Ордынский
C42: ПС | D42: Иванов | G42: 819.7564 | H42: 0.2 | I42: Усть-Ордынский
C43: ПС | D43: Иванов | G43: 223.826 | I43: Иркутский
C44: ПС | D44: Иванов | G44: 485.425 | I44: Иркутский
C45: ПС | D45: Иванов | G45: 855.65025 | I45: Иркутский
C46: ПС | D46: Иванов | G46: 344.41 | I46: Иркутский
C47: ПС | D47: Иванов | G47: 410.055 | I47: Иркутский
C48: ПС | D48: Иванов | G48: 377.008 | I48: Иркутский
C49: ПС | D49: Иванов | G49: 929.6634 | I49: Иркутский
C50: ПС | D50: Иванов | G50: 1179.68 | I50: Иркутский
A51: 12-ЗК/12 | B51: 2012-06-18 | C51: ПС | D51: Иванов | E51: 2012-06-18 | F51: 2012-09-01 | G51: 494.37 | I51: Заларинский (Кутулик)
A52: 18-ЗК/12 | B52: 2012-06-19 | C52: ПС | D52: Иванов | E52: 2012-06-19 | F52: 2012-09-01 | G52: 489 | I52: Заларинский (Кутулик)
A53: 10-ЗК/13 | B53: 2012-06-18 | C53: ПС | D53: Иванов | E53: 2012-06-18 | F53: 2012-09-01 | G53: 490.48 | I53: Заларинский (Кутулик)
A54: 19-ЗК/14 | B54: 2012-06-18 | C54: ПС | D54: Иванов | E54: 2012-06-18 | F54: 2012-09-01 | G54: 413.2 | I54: Заларинский (Кутулик)
A55: 16-ЗК/15 | B55: 2012-06-19 | C55: ПС | D55: Иванов | E55: 2012-06-19 | F55: 2012-09-01 | G55: 393 | I55: Заларинский (Кутулик)
A56: 46-К/12 | B56: 2012-06-18 | C56: ПС | D56: Иванов | E56: 2012-06-15 | F56: 2012-09-30 | G56: 474.578 | I56: Заларинский
A57: 44-К/13 | B57: 2012-06-13 | C57: ПС | D57: Иванов | E57: 2012-06-15 | F57: 2012-09-30 | G57: 472.738 | I57: Заларинский
A58: 20-ЗК/15 | B58: 2012-06-19 | C58: ПС | D58: Иванов | E58: 2012-06-19 | F58: 2012-09-01 | G58: 323.3 | I58: Заларинский (Кутулик)
A59: 13-ЗК/16 | B59: 2012-06-18 | C59: ПС | D59: Иванов | E59: 2012-06-18 | F59: 2012-09-01 | G59: 266.64 | I59: Заларинский (Кутулик)
A60: 15-ЗК/17 | B60: 2012-06-18 | C60: ПС | D60: Иванов | E60: 2012-06-18 | F60: 2012-09-01 | G60: 496.292 | I60: Заларинский (Кутулик)
A61: 45-ЭА/12 | B61: 2012-06-20 | C61: ПС | D61: Иванов | E61: 2012-06-20 | F61: 2012-09-30 | G61: 792.93 | I61: Заларинский
A62: б/н | B62: 2012-06-22 | C62: ПС | D62: Иванов | E62: 2012-06-22 | F62: 2012-07-22 | G62: 290 | I62: Тулунский
A63: б/н | B63: 2012-06-01 | C63: ПС | D63: Иванов | E63: 2012-06-01 | F63: 2012-06-15 | G63: 222.859 | I63: Тулунский
A64: 2012.64907 | B64: 2012-06-25 | C64: ПС | D64: Иванов | E64: 2012-06-25 | F64: 2012-07-25 | G64: 404.4 | I64: Тулунский
A65: 2012.70903 | B65: 2012-06-30 | C65: ПС | D65: Иванов | E65: 2012-06-30 | F65: 2012-07-30 | G65: 593.9944 | H65: 0.2 | I65: Усть-Ордынский
A66: 02-ОЭА/12 | B66: 2012-07-10 | C66: ПС | D66: Иванов | E66: 2012-07-10 | F66: 2012-08-31 | G66: 926.3 | I66: Балаганский
A67: 03-ОЭА/12 | B67: 2012-07-09 | C67: ПС | D67: Иванов | E67: 2012-07-09 | F67: 2012-09-30 | G67: 1954.545 | I67: Балаганский
A68: 2012.70879 | B68: 2012-06-30 | C68: ПС | D68: Иванов | E68: 2012-06-30 | F68: 2012-08-14 | G68: 1566.13 | H68: 0.17 | I68: Усть-Ордынский
A69: 4 | C69: ПС | D69: Иванов | G69: 499 | I69: Качугский
A70: 2012.77405 | C70: ПС | D70: Иванов | E70: 2012-07-15 | F70: 2012-08-15 | G70: 581.86605 | H70: 0.17 | I70: Усть-Ордынский
A71: 2012.77384 | C71: ПС | D71: Иванов | E71: 2012-07-15 | F71: 2012-08-15 | G71: 775.8214 | H71: 0.17 | I71: Усть-Ордынский
A72: 2012.75710 | C72: ПС | D72: Иванов | F72: 2012-10-30 | G72: 1072.728 | I72: Иркутский
A73: 2012.80794 | C73: =IF(OR(D73="Черняк",D73="Панов",D73="Ганицева",D73="Гордиенко",D73="Лужников"),"ГИ","ПС") -> ПС | D73: Иванов | F73: 2012-11-30 | G73: 378.3233 | I73: Иркутский
A74: 2012.82481 | C74: ПС | D74: Иванов | F74: 2012-10-30 | G74: 823 | I74: Иркутский
A75: 2012.82439 | C75: ПС | D75: Иванов | F75: 2012-10-30 | G75: 1053 | I75: Иркутский
A76: 0134300084412000200-0208560-01 | C76: ПС | D76: Иванов | F76: 30 дней | G76: 2045.573 | I76: Зиминский
A77: ЭА/23 | B77: 2012-07-20 | C77: ПС | D77: Иванов | E77: 2012-07-23 | F77: 2012-11-01 | G77: 2254.36736 | I77: Нижнеудинский
A78: ЭА/25 | B78: 2012-07-20 | C78: ПС | D78: Иванов | E78: 2012-07-23 | F78: 2012-11-01 | G78: 1439.83438 | I78: Нижнеудинский
C79: ПС | D79: Иванов | I79: Усть-Ордынский
B80: 2012-07-23 | C80: ПС | D80: Иванов | F80: 30 дней | G80: 1124.35 | I80: Усть-Ордынский
C81: ПС | D81: Иванов | G81: 263 | I81: Усть-Ордынский
C82: ПС | D82: Иванов | G82: 479 | I82: Усть-Ордынский
C83: ПС | D83: Иванов | G83: 323.61 | I83: Усть-Ордынский
C84: ПС | D84: Иванов | G84: 430 | I84: Усть-Ордынский
C85: ПС | D85: Иванов | G85: 363.6 | I85: Балаганский
C86: ПС | D86: Иванов | G86: 460 | I86: Балаганский (Усть-Уда)
C87: ПС | D87: Иванов | G87: 106.061 | I87: Балаганский (Усть-Уда)
C88: ПС | D88: Иванов | G88: 297 | I88: Балаганский (Усть-Уда)
C89: ПС | D89: Иванов | G89: 324 | I89: Балаганский (Усть-Уда)
C90: ПС | D90: Иванов | G90: 209 | I90: Балаганский (Усть-Уда)
C91: ПС | D91: Иванов | G91: 480.654 | I91: Балаганский
C92: ПС | D92: Иванов | G92: 1200.793 | I92: Балаганский (Усть-Уда)
C93: ПС | D93: Иванов | G93: 1014.9995 | I93: Балаганский
C94: ПС | D94: Иванов | G94: 1020 | I94: Балаганский
A95: 66-к/12 | B95: 2012-07-16 | C95: ПС | D95: Иванов | E95: 2012-07-16 | F95: 2012-09-30 | G95: 167.77 | I95: Заларинский
A96: 14-ЗК/12 | B96: 2012-06-18 | C96: ПС | D96: Иванов | E96: 2012-06-19 | F96: 2012-09-01 | G96: 273.74 | I96: Заларинский (Кутулик)
A97: 17-ЗК/12 | B97: 2012-06-18 | C97: ПС | D97: Иванов | E97: 2012-06-19 | F97: 2012-09-01 | G97: 480 | I97: Заларинский (Кутулик)
A98: 22-ЗК/12 | B98: 2012-06-22 | C98: ПС | D98: Иванов | E98: 2012-06-22 | F98: 2012-09-01 | G98: 492.7 | I98: Заларинский (Кутулик)
A99: № 6д | B99: 2009-12-28 | C99: ПС | D99: Иванов | E99: 01.01.2010 г | F99: 31.12.2012 г | G99: 208422 | I99: Всего:
C100: ПС | D100: Иванов | I100: в т. ч. по филиалам:
C101: ПС | D101: Иванов | I101: Тулунский
C102: ПС | D102: Иванов | I102: Братский
A103: № 7д | B103: 28.12.2009 г. | C103: ПС | D103: Иванов | E103: 01.01.2010 г | F103: 31.12.2012 г | G103: 152765 | I103: Всего:
C104: ПС | D104: Иванов | I104: в т. ч. по филиалам:
C105: ПС | D105: Иванов | I105: Братский
C106: ПС | D106: Иванов | I106: Нижнеилимский
A107: № 8д | B107: 28.12.2009 г. | C107: ПС | D107: Иванов | E107: 01.01.2010 г. | F107: 31.12.2012 г. | G107: 61509 | I107: Усть-Кутский
A108: № 9д | B108: 04.01.2010 г. | C108: ПС | D108: Иванов | E108: 01.01.2010 г. | F108: 31.12.2012 г. | G108: 90401.72 | I108: Усть-Кутский
A109: № 15д | B109: 21.12.2012 г. | C109: ПС | D109: Иванов | E109: 01.01.2011 г. | F109: 21.12.2012 г. | G109: 9100 | I109: Усольский
A110: № 6м | B110: 28.12.2009 г. | C110: ПС | D110: Иванов | E110: 01.01.2010 г | F110: 31.12.2012 г | G110: 21272.184 | I110: Всего:
C111: ПС | D111: Иванов | I111: в т. ч. по филиалам:
C112: ПС | D112: Иванов | I112: Тулунский
C113: ПС | D113: Иванов | I113: Братский
A114: № 7м | B114: 28.12.2009 г. | C114: ПС | D114: Иванов | E114: 01.01.2010 г | F114: 31.12.2012 г | G114: 15210.691 | I114: Всего:
C115: ПС | D115: Иванов | I115: в т. ч. по филиалам:
C116: ПС | D116: Иванов | I116: Братский
C117: ПС | D117: Иванов | I117: Нижнеилимский
A118: № 8м | B118: 28.12.2009 г. | C118: ПС | D118: Иванов | E118: 01.01.2010 г. | F118: 31.12.2012 г. | G118: 14471.263 | I118: Усть-Кутский
A119: № 9м | B119: 04.01.2010 г. | C119: ПС | D119: Иванов | E119: 01.01.2010 г | F119: 31.12.2012 г. | G119: 8520.445 | I119: Усть-Кутский
A120: № 5м | B120: 29.02.2012 г. | C120: ПС | D120: Иванов | E120: 01.03.2012 г. | F120: 31.12.2012 г. | G120: 60.122 | I120: Усольский
A121: 5/150-10 от 24.12.2010г. | B121: 24.12.2010г. | C121: ПС | D121: Иванов | E121: 01.01.2011 г. | F121: 31.12.2013 г. | G121: 994488.355 | I121: Всего:
A122: 5/150-10 от 24.12.2010г. | B122: 24.12.2010г. | C122: ПС | D122: Иванов | I122: в т. ч. по филиалам:
A123: 5/150-10 от 24.12.2010г. | B123: 24.12.2010г. | C123: ПС | D123: Иванов | I123: Балаганский
A124: 5/150-10 от 24.12.2010г. | B124: 24.12.2010г. | C124: ПС | D124: Иванов | I124: Бодайбинский
A125: 5/150-10 от 24.12.2010г. | B125: 24.12.2010г. | C125: ПС | D125: Иванов | I125: Братский
A126: 5/150-10 от 24.12.2010г. | B126: 24.12.2010г. | C126: ПС | D126: Иванов | I126: Заларинский
A127: 5/150-10 от 24.12.2010г. | B127: 24.12.2010г. | C127: ПС | D127: Иванов | G127: 3010 | I127: Зиминский
A128: 5/150-10 от 24.12.2010г. | B128: 24.12.2010г. | C128: ПС | D128: Иванов | I128: Усть-Ордынский
A129: 5/150-10 от 24.12.2010г. | B129: 24.12.2010г. | C129: ПС | D129: Иванов | I129: Казачинско -Ленский
A130: 5/150-10 от 24.12.2010г. | B130: 24.12.2010г. | C130: ПС | D130: Иванов | I130: Качугский
A131: 5/150-10 от 24.12.2010г. | B131: 24.12.2010г. | C131: ПС | D131: Иванов | I131: Нижнеилимский
A132: 5/150-10 от 24.12.2010г. | B132: 24.12.2010г. | C132: ПС | D132: Иванов | E132: нет региональных дорог | I132: Нижнеудинский
A133: 5/150-10 от 24.12.2010г. | B133: 24.12.2010г. | C133: ПС | D133: Иванов | I133: Тайшетский
A134: 5/150-10 от 24.12.2010г. | B134: 24.12.2010г. | C134: ПС | D134: Иванов | I134: Иркутский
A135: 5/150-10 от 24.12.2010г. | B135: 24.12.2010г. | C135: ПС | D135: Иванов | E135: нет региональных дорог | I135: Тулунский
A136: 5/150-10 от 24.12.2010г. | B136: 24.12.2010г. | C136: ПС | D136: Иванов | I136: Усольский
A137: 5/150-10 от 24.12.2010г. | B137: 24.12.2010г. | C137: =IF(OR(D137="Черняк",D137="Панов",D137="Ганицева",D137="Гордиенко",D137="Лужников"),"ГИ","ПС") -> ПС | D137: Иванов | I137: Усть-Илимский
A138: 5/150-10 от 24.12.2010г. | B138: 24.12.2010г. | C138: ПС | D138: Иванов | I138: Усть-Кутский
A139: 5/154-10 от 27.12.2010г. | B139: 27.12.2010г. | C139: ПС | D139: Иванов | E139: 01.01.2011 г. | F139: 31.12.2013 г. | G139: 1079198.165 | I139: Всего:
A140: 5/154-10 от 27.12.2010г. | B140: 27.12.2010г. | C140: ПС | D140: Иванов | E140: 01.01.2011 г. | F140: 31.12.2013 г. | I140: в т. ч. по филиалам:
A141: 5/154-10 от 27.12.2010г. | B141: 27.12.2010г. | C141: ПС | D141: Иванов | E141: 01.01.2011 г. | F141: 31.12.2013 г. | I141: Балаганский
A142: 5/154-10 от 27.12.2010г. | B142: 27.12.2010г. | C142: ПС | D142: Иванов | E142: 01.01.2011 г. | F142: 31.12.2013 г. | I142: Бодайбинский
A143: 5/154-10 от 27.12.2010г. | B143: 27.12.2010г. | C143: ПС | D143: Иванов | E143: 01.01.2011 г. | F143: 31.12.2013 г. | I143: Братский
A144: 5/154-10 от 27.12.2010г. | B144: 27.12.2010г. | C144: ПС | D144: Иванов | E144: 01.01.2011 г. | F144: 31.12.2013 г. | I144: Заларинский
A145: 5/154-10 от 27.12.2010г. | B145: 27.12.2010г. | C145: ПС | D145: Иванов | E145: 01.01.2011 г. | F145: 31.12.2013 г. | G145: 15037 | I145: Зиминский
A146: 5/154-10 от 27.12.2010г. | B146: 27.12.2010г. | C146: ПС | D146: Иванов | E146: 01.01.2011 г. | F146: 31.12.2013 г. | I146: Усть-Ордынский
A147: 5/154-10 от 27.12.2010г. | B147: 27.12.2010г. | C147: ПС | D147: Иванов | E147: 01.01.2011 г. | F147: 31.12.2013 г. | I147: Казачинско -Ленский
A148: 5/154-10 от 27.12.2010г. | B148: 27.12.2010г. | C148: ПС | D148: Иванов | E148: 01.01.2011 г. | F148: 31.12.2013 г. | I148: Качугский
A149: 5/154-10 от 27.12.2010г. | B149: 27.12.2010г. | C149: ПС | D149: Иванов | E149: 01.01.2011 г. | F149: 31.12.2013 г. | I149: Нижнеилимский
A150: 5/154-10 от 27.12.2010г. | B150: 27.12.2010г. | C150: ПС | D150: Иванов | E150: 01.01.2011 г. | F150: 31.12.2013 г. | I150: Нижнеудинский
A151: 5/154-10 от 27.12.2010г. | B151: 27.12.2010г. | C151: ПС | D151: Иванов | E151: 01.01.2011 г. | F151: 31.12.2013 г. | I151: Тайшетский
A152: 5/154-10 от 27.12.2010г. | B152: 27.12.2010г. | C152: ПС | D152: Иванов | E152: 01.01.2011 г. | F152: 31.12.2013 г. | I152: Иркутский
A153: 5/154-10 от 27.12.2010г. | B153: 27.12.2010г. | C153: ПС | D153: Иванов | E153: 01.01.2011 г. | F153: 31.12.2013 г. | I153: Тулунский
A154: 5/154-10 от 27.12.2010г. | B154: 27.12.2010г. | C154: ПС | D154: Иванов | E154: 01.01.2011 г. | F154: 31.12.2013 г. | I154: Усольский
A155: 5/154-10 от 27.12.2010г. | B155: 27.12.2010г. | C155: ПС | D155: Иванов | E155: 01.01.2011 г. | F155: 31.12.2013 г. | I155: Усть-Илимский
A156: 5/154-10 от 27.12.2010г. | B156: 27.12.2010г. | C156: ПС | D156: Иванов | E156: 01.01.2011 г. | F156: 31.12.2013 г. | I156: Усть-Кутский
A157: 5/60-12 от 02.05.2012г. | B157: 02.05.2012г. | C157: ПС | D157: Иванов | E157: 02.05.2012г. | F157: 30.10.2012 г. | G157: =G159+G160+G161+G162+G163+G164+G165+G166+G167+G168+G169+G170+G171+G172+G173+G174 -> 199000 | I157: Всего:
A158: 5/60-12 от 02.05.2012г. | B158: 02.05.2012г. | C158: ПС | D158: Иванов | E158: 02.05.2012г. | F158: 30.10.2012 г. | I158: в т. ч. по филиалам:
A159: 5/60-12 от 02.05.2012г. | B159: 02.05.2012г. | C159: ПС | D159: Иванов | E159: 02.05.2012г. | F159: 30.10.2012 г. | G159: 16915 | I159: Усть-Ордынский
A160: 5/60-12 от 02.05.2012г. | B160: 02.05.2012г. | C160: ПС | D160: Иванов | E160: 02.05.2012г. | F160: 30.10.2012 г. | G160: 12935 | I160: Заларинский
A161: 5/60-12 от 02.05.2012г. | B161: 02.05.2012г. | C161: ПС | D161: Иванов | E161: 02.05.2012г. | F161: 30.10.2012 г. | G161: 15920 | I161: Балаганский
A162: 5/60-12 от 02.05.2012г. | B162: 02.05.2012г. | C162: ПС | D162: Иванов | E162: 02.05.2012г. | F162: 30.10.2012 г. | G162: 35820 | I162: Иркутский
A163: 5/60-12 от 02.05.2012г. | B163: 02.05.2012г. | C163: ПС | D163: Иванов | E163: 02.05.2012г. | F163: 30.10.2012 г. | G163: 11940 | I163: Качугский
A164: 5/60-12 от 02.05.2012г. | B164: 02.05.2012г. | C164: ПС | D164: Иванов | E164: 02.05.2012г. | F164: 30.10.2012 г. | G164: 8955 | I164: Зиминский
A165: 5/60-12 от 02.05.2012г. | B165: 02.05.2012г. | C165: ПС | D165: Иванов | E165: 02.05.2012г. | F165: 30.10.2012 г. | G165: 11940 | I165: Тайшетский
A166: 5/60-12 от 02.05.2012г. | B166: 02.05.2012г. | C166: ПС | D166: Иванов | E166: 02.05.2012г. | F166: 30.10.2012 г. | G166: 19900 | I166: Тулунский
A167: 5/60-12 от 02.05.2012г. | B167: 02.05.2012г. | C167: ПС | D167: Иванов | E167: 02.05.2012г. | F167: 30.10.2012 г. | G167: 8955 | I167: Нижнеудинский
A168: 5/60-12 от 02.05.2012г. | B168: 02.05.2012г. | C168: ПС | D168: Иванов | E168: 02.05.2012г. | F168: 30.10.2012 г. | G168: 6965 | I168: Бодайбинский
A169: 5/60-12 от 02.05.2012г. | B169: 02.05.2012г. | C169: ПС | D169: Иванов | E169: 02.05.2012г. | F169: 30.10.2012 г. | G169: 11940 | I169: Братский
A170: 5/60-12 от 02.05.2012г. | B170: 02.05.2012г. | C170: ПС | D170: Иванов | E170: 02.05.2012г. | F170: 30.10.2012 г. | G170: 8955 | I170: Казачинско -Ленский
A171: 5/60-12 от 02.05.2012г. | B171: 02.05.2012г. | C171: ПС | D171: Иванов | E171: 02.05.2012г. | F171: 30.10.2012 г. | G171: 2985 | I171: Усть-Кутский
A172: 5/60-12 от 02.05.2012г. | B172: 02.05.2012г. | C172: ПС | D172: Иванов | E172: 02.05.2012г. | F172: 30.10.2012 г. | G172: 1990 | I172: Усть-Илимский
A173: 5/60-12 от 02.05.2012г. | B173: 02.05.2012г. | C173: ПС | D173: Иванов | E173: 02.05.2012г. | F173: 30.10.2012 г. | G173: 2985 | I173: Нижнеилимский
A174: 5/60-12 от 02.05.2012г. | B174: 02.05.2012г. | C174: ПС | D174: Иванов | E174: 02.05.2012г. | F174: 30.10.2012 г. | G174: 19900 | I174: Усольский
A175: 5/58-12 от 27.04.2012г. | B175: 27.04.2012г. | C175: ПС | D175: Иванов | E175: 02.05.2012г. | F175: 30.10.2012 г. | G175: 21275 | I175: Всего:
C176: ПС | D176: Иванов | I176: в т. ч. по филиалам:
C177: ПС | D177: Иванов | G177: 8864.006 | I177: Усть-Ордынский
C178: ПС | D178: Иванов | G178: 12410.994 | I178: Братский
A179: 5/76-12 | C179: ПС | D179: Иванов | F179: 2012-10-30 | G179: 20546.77189 | I179: Балаганский
A180: 5/75-12 | C180: ПС | D180: Иванов | F180: 2012-10-31 | G180: 73086.91009 | I180: Братский
C181: ПС | D181: Иванов | G181: 781 | I181: Тулунский
C182: ПС | D182: Иванов | G182: 1344.2 | I182: Тулунский
C183: ПС | D183: Иванов | G183: 405.1 | I183: Тулунский
A184: 20/111-12 от 05.07.2012г. | B184: 05.07.2012г. | C184: ПС | D184: Иванов | E184: 05.07.2012г. | F184: 01.12.2012г. | G184: 29850 | I184: Всего:
A185: 20/111-12 от 05.07.2012г. | B185: 05.07.2012г. | C185: ПС | D185: Иванов | E185: 05.07.2012г. | F185: 01.12.2012г. | I185: в т. ч. по филиалам:
A186: 20/111-12 от 05.07.2012г. | B186: 05.07.2012г. | C186: ПС | D186: Иванов | E186: 05.07.2012г. | F186: 01.12.2012г. | I186: Заларинский
A187: 20/111-12 от 05.07.2012г. | B187: 05.07.2012г. | C187: ПС | D187: Иванов | E187: 05.07.2012г. | F187: 01.12.2012г. | I187: Балаганский
A188: 20/111-12 от 05.07.2012г. | B188: 05.07.2012г. | C188: ПС | D188: Иванов | E188: 05.07.2012г. | F188: 01.12.2012г. | I188: Иркутский
A189: 20/111-12 от 05.07.2012г. | B189: 05.07.2012г. | C189: ПС | D189: Иванов | E189: 05.07.2012г. | F189: 01.12.2012г. | G189: 2000 | I189: Зиминский
A190: 20/111-12 от 05.07.2012г. | B190: 05.07.2012г. | C190: ПС | D190: Иванов | E190: 05.07.2012г. | F190: 01.12.2012г. | I190: Тайшетский
A191: 20/111-12 от 05.07.2012г. | B191: 05.07.2012г. | C191: ПС | D191: Иванов | E191: 05.07.2012г. | F191: 01.12.2012г. | I191: Тулунский
A192: 20/111-12 от 05.07.2012г. | B192: 05.07.2012г. | C192: ПС | D192: Иванов | E192: 05.07.2012г. | F192: 01.12.2012г. | I192: Усольский
A193: 20/111-12 от 05.07.2012г. | B193: 05.07.2012г. | C193: ПС | D193: Иванов | E193: 05.07.2012г. | F193: 01.12.2012г. | I193: Братский
A194: 20/111-12 от 05.07.2012г. | B194: 05.07.2012г. | C194: ПС | D194: Иванов | E194: 05.07.2012г. | F194: 01.12.2012г. | I194: Казачинско -Ленский
A195: 20/111-12 от 05.07.2012г. | B195: 05.07.2012г. | C195: ПС | D195: Иванов | E195: 05.07.2012г. | F195: 01.12.2012г. | I195: Усть-Кутский
A196: 20/111-12 от 05.07.2012г. | B196: 05.07.2012г. | C196: ПС | D196: Иванов | E196: 05.07.2012г. | F196: 01.12.2012г. | I196: Усть-Илимский
A197: 20/111-12 от 05.07.2012г. | B197: 05.07.2012г. | C197: ПС | D197: Иванов | E197: 05.07.2012г. | F197: 01.12.2012г. | I197: Нижнеилимский
A198: 20/111-12 от 05.07.2012г. | B198: 05.07.2012г. | C198: ПС | D198: Иванов | E198: 05.07.2012г. | F198: 01.12.2012г. | I198: Нижнеудинский
A199: 5/110-12 от 02.07.2012г. | B199: 02.07.2012г. | C199: ПС | D199: Иванов | E199: 2 года:2 июля2012г.-31 декабря 2013г. | F199: 31 декабря 2013г. | G199: 26482.4 | I199: Всего:
C200: ПС | D200: Иванов | I200: в т. ч. по филиалам:
... 116 more rows

Sheet Лист1
